Cogmind - Beta 16 @@@ ROGUE MODE // 2026.02.07 @ 15:22:07 Player: shapeshifter Result: Destroyed by G-34 Mercenary with Small Laser Performance ------------- Evolutions (0) 0 Regions Visited (4) 800 Robots Destroyed (37) 185 Value Destroyed (705) 705 Prototype IDs (38) 760 Alien Tech Used (0) 0 Bonus (300) 300 TOTAL SCORE: 2750 Bonus ------- Aligned with FarCom 300 Cogmind --------- Core Integrity 0/250 Matter 288/300 Energy 160/160 System Corruption 0% Temperature Cool (22) Movement Walking (120) Location -9/Mines Parts ------- > --- POWER (1) -------- Light Nuclear Core > --- PROPULSION (2) --- Advanced Myomer Leg Advanced Myomer Leg > --- UTILITY (2) ------ High-capacity Storage Unit Light Armor Plating > --- WEAPON (2) ------- 8R-AWN's Boregun 8R-AWN's Boregun > --- INVENTORY (20) --- Reinforced Fission Core Experimental Heat Sink Gravity Neutralizer Seismic Detector Advanced Weapon Cycler Light Armor Plating Light Armor Plating 8R-AWN's Armor/EX Thief Drone Bay (1/3) AS-neutralizer No. 17b Chronowheel Latent Energy Streamer Light Assault Rifle Grenade Launcher Datajack Deploy-a-Sentry Deploy-a-Sentry Deploy-a-Sentry Peak State ------------ > --- POWER ------------ Light Nuclear Core > --- PROPULSION ------- Advanced Myomer Leg Advanced Myomer Leg > --- UTILITY ---------- High-capacity Storage Unit Thief Drone Bay > --- WEAPON ----------- 8R-AWN's Boregun 8R-AWN's Boregun > --- INVENTORY -------- Reinforced Fission Core Experimental Heat Sink High-capacity Battery Large Matter Pod Gravity Neutralizer Seismic Detector Light Armor Plating Light Armor Plating Light Armor Plating AS-neutralizer No. 17b Chronowheel Latent Energy Streamer Light Assault Rifle Grenade Launcher Datajack Deploy-a-Sentry Deploy-a-Sentry Deploy-a-Sentry [Rating: 54] Favorites ----------- Power Light Nuclear Core Engine Ion Engine Power Core Light Nuclear Core Propulsion Light Treads Treads Light Treads Leg Advanced Myomer Leg Utility High-capacity Storage Unit Device Seismic Detector Storage High-capacity Storage Unit Protection Light Armor Plating Weapon Assault Rifle Ballistic Gun Assault Rifle Launcher Grenade Launcher Special Melee Weapon Datajack Build | -11 -10 -10 -10 -9 ------- Run | Yrd Mat Min Exi Min Slots Evolved . | . . . . . Power . | . . . . . Propulsion . | . . . . . Utility . | . . . . . Weapon . | . . . . . Parts Attached 26 | 6 5 3 12 . Power 2 | 1 1 . . . Engine 1 | 1 . . . . Core 1 | . 1 . . . Reactor . | . . . . . Propulsion 6 | 2 . 1 3 . Treads 4 | 2 . 1 1 . Leg 2 | . . . 2 . Wheel . | . . . . . Hover . | . . . . . Flight . | . . . . . Utility 8 | 1 2 1 4 . Device 2 | . 1 1 . . Storage 4 | 1 1 . 2 . Processor . | . . . . . Hackware . | . . . . . Protection 2 | . . . 2 . Artifact . | . . . . . Weapon 10 | 2 2 1 5 . Energy Gun . | . . . . . Energy Cannon . | . . . . . Ballistic Gun 8 | 2 2 1 3 . Ballistic Cannon . | . . . . . Launcher 1 | . . . 1 . Special Weapon . | . . . . . Impact Weapon . | . . . . . Slashing Weapon . | . . . . . Piercing Weapon . | . . . . . Special Melee Weapon 1 | . . . 1 . Unidentified Prototypes 1 | . . 1 . . Parts Lost 3 | . 1 1 1 . Power 1 | . 1 . . . Propulsion 2 | . . 1 1 . Utility . | . . . . . Weapon . | . . . . . Highest Loss Streak 1 | . 1 1 1 . To Critical Strikes 1 | . . . 1 . Average Backups 15 | 3 12 19 16 15 Power . | . . . . 1 Propulsion . | 1 . 1 . . Utility 7 | . 4 9 8 9 Weapon 6 | . 6 8 5 3 Tool/Special . | . . . . . Unused Backups 30 | . 6 . 16 8 Power 5 | . 1 . 3 1 Propulsion 2 | . 2 . . . Utility 14 | . 1 . 8 5 Weapon 8 | . 2 . 5 1 Tool/Special 1 | . . . . 1 Average Slot Usage (%) 99 | . 98 100 100 100 Engine 2 | . 5 . . . Core 11 | . 8 14 14 14 Treads 25 | . 28 28 22 . Leg 2 | . . . 5 28 Device 12 | . 13 14 11 . Storage 14 | . 14 14 14 14 Protection 1 | . . . 2 14 Ballistic Gun 23 | . 27 28 16 28 Launcher 3 | . . . 7 . Special Melee Weapon 1 | . . . 3 . Peak Build Rating 54 | 6 11 17 54 52 Average Rating 13 | 5 9 10 18 52 On Entrance 16 | . 6 11 11 52 Avg Prop Armor Cover (%) . | . . . . . Naked Turns . | . . . . . Heaviest Build 60 | 13 50 49 60 . Greatest Support 60 | 40 40 40 60 . Greatest Overweight (x) 1 | . 1 1 1 . Average Overweight (x) . | . . 1 . . Largest Inventory Capacity 20 | 8 20 20 20 20 Average Capacity 18 | 7 17 20 18 20 Most Carried 20 | 5 20 20 20 20 Average Carried 15 | 4 12 19 17 20 Final Capacity 20 | 8 20 20 20 20 Final Carried 20 | 5 20 20 20 20 Class Distribution -------------------- 72% | Mutant 27% | Scavenger-Mutant Dominant Class ---------------- Mutant | -10/Materials Mutant | -10/Mines Scavenger-Mutant | -10/Exiles Scavenger-Mutant | -9/Mines Resources | -11 -10 -10 -10 -9 ----------- Run | Yrd Mat Min Exi Min Matter Collected 1278 | 272 573 142 291 . Remotely . | . . . . . Salvage Created 1189 | 81 636 332 140 . Parts 81 | 4 55 21 1 . Haulers Intercepted 2 | . 2 . . . Recyclers Shooed . | . . . . . Parts Field Recycled . | . . . . . Retrieved Matter . | . . . . . Parts Self-Destructed . | . . . . . Prevented . | . . . . . Parts Restored . | . . . . . Kills | -11 -10 -10 -10 -9 ------- Run | Yrd Mat Min Exi Min Combat Hostiles Destroyed 31 | . 16 9 6 . Guns 26 | . 16 9 1 . AOE 5 | . . . 5 . Classes Destroyed 9 | 2 6 . 1 . Worker 2 | . 1 1 . . Tunneler 2 | 1 1 . . . Hauler 2 | . 2 . . . Recycler 1 | 1 . . . . Operator 1 | . 1 . . . Watcher 3 | . 3 . . . Swarmer 12 | . 9 3 . . Grunt 13 | . 7 6 . . Assembled 5 | . . . 5 . Best Kill Streak 5 | 2 4 4 5 . Combat Bots Only 5 | . 3 4 5 . Max Kills in Single Turn 2 | 1 2 2 2 . Gunslinging 1 | . 1 1 . . Exploded 2 | . . . 2 . Melee . | . . . . . Uniques/NPCs Destroyed 1 | . . . 1 . 8R-AWN (-10/Exiles) Combat | -11 -10 -10 -10 -9 -------- Run | Yrd Mat Min Exi Min Hostile Shots Fired 130 | . 79 36 11 4 Missed 44 | . 26 11 5 2 Hits 86 | . 53 25 6 2 Projectile 86 | . 53 25 6 2 Critical Strikes 2 | . . . 2 . Damage Taken 980 | . 526 290 142 22 Core 255 | . 108 64 73 10 Absorbed by Shields . | . . . . . Core Remaining (%) 100 | 100 . . . . Volleys Fired 103 | 5 60 27 10 1 Largest 2 | 2 2 2 2 2 Hottest 60 | 40 40 40 60 60 Shots Fired 197 | 10 120 54 11 2 Gun 188 | 10 120 54 2 2 Cannon . | . . . . . Launcher 9 | . . . 9 . Special . | . . . . . Kinetic 188 | 10 120 54 2 2 Thermal . | . . . . . Explosive 9 | . . . 9 . Electromagnetic . | . . . . . Robot Hit Streak 12 | 4 12 11 3 4 Robot Miss Streak 5 | 2 5 3 . 1 Penetration Max . | . . . . . Secondary Targets 6 | . 5 1 . . Max Gunslinging Chain 1 | . 1 1 . . Shots Hit Robots 125 | 6 75 37 6 1 Core Hits 73 | 3 39 20 11 . Critical Kills . | . . . . . Critical Parts Destroyed . | . . . . . Critical Strikes . | . . . . . Melee Attacks 4 | . . . 4 . Impact . | . . . . . Slashing . | . . . . . Piercing . | . . . . . Sneak Attacks 4 | . . . 4 . Combat Hostiles . | . . . . . Follow-up Attacks . | . . . . . Damage Inflicted 1797 | 66 916 382 414 19 Guns 1397 | 66 916 382 14 19 Cannons . | . . . . . Explosions 400 | . . . 400 . Melee . | . . . . . Ramming . | . . . . . Kinetic 1397 | 66 916 382 14 19 Thermal . | . . . . . Explosive 400 | . . . 400 . Electromagnetic . | . . . . . Impact . | . . . . . Slashing . | . . . . . Piercing . | . . . . . Highest Corruption . | . . . . . Average Corruption . | . . . . . Corruption Purged . | . . . . . Corruption Blocked . | . . . . . Overload Shots . | . . . . . Overflow Damage 7 | . . . 7 . Projectiles . | . . . . . Explosions 7 | . . . 7 . Melee . | . . . . . Knockbacks . | . . . . . Impact . | . . . . . Kinetic . | . . . . . Secondary . | . . . . . Self-Inflicted Damage . | . . . . . Shots . | . . . . . Rammed . | . . . . . Targets Rammed . | . . . . . Kicked . | . . . . . Crushed . | . . . . . Highest Temperature 20 | . 13 20 15 16 Average Temperature 5 | . 4 6 8 10 Received Heat Transfer 339 | . 195 132 . 12 Siege Activations . | . . . . . Martial Activations . | . . . . . Shielding Activations . | . . . . . Robots Disrupted . | . . . . . Combat Hostiles . | . . . . . Robots Corrupted . | . . . . . Combat Hostiles . | . . . . . Parts Fried . | . . . . . Impact Corruptions . | . . . . . Robots Melted . | . . . . . Combat Hostiles . | . . . . . Parts Melted . | . . . . . Heat Transferred . | . . . . . Parts Sabotaged . | . . . . . Parts Stolen . | . . . . . Parts Stripped . | . . . . . Power Chain Reactions . | . . . . . Alert | -11 -10 -10 -10 -9 ------- Run | Yrd Mat Min Exi Min Maximum Alert Level . | . . . . . Low Security (%) 100 | 100 100 100 . 100 Level 1 . | . . . . . Level 2 . | . . . . . Level 3 . | . . . . . Level 4 . | . . . . . Level 5 . | . . . . . High Security . | . . . . . Max Security . | . . . . . Peak Influence 107 | 5 107 105 . 1 Initial 28 | . . 28 . . Average 33 | . 31 42 . 1 Influence Increases 690 | 10 439 240 . 1 Destroy 0b10 Robot/C 500 | . 320 180 . . Destroy 0b10 Robot/NC 55 | 10 40 5 . . Destroy Leader 110 | . 70 40 . . Successful Hack 7 | . 7 . . . Destroy Structure 3 | . 2 . . 1 Lose Combat Pursuer 15 | . . 15 . . Influence Decreases 689 | 10 364 303 12 . Entered New Map 59 | . . 47 12 . Time Decay 610 | 10 354 246 . . Lost Part 20 | . 10 10 . . Squads Dispatched 2 | . 2 . . . Investigation 1 | . 1 . . . Extermination . | . . . . . Reinforcement 1 | . 1 . . . Assault . | . . . . . Garrison . | . . . . . Intercept . | . . . . . Searches Triggered . | . . . . . Construction Impeded . | . . . . . Haulers Reinforced . | . . . . . Active Scanning Responses . | . . . . . Cargo Convoy Interrupts . | . . . . . Stealth | -11 -10 -10 -10 -9 --------- Run | Yrd Mat Min Exi Min Distress Signals 1 | . 1 . . . Communications Jammed . | . . . . . Distress Signals . | . . . . . Times Spotted 41 | . 22 10 7 2 Peak Tracking Total 9 | . 4 3 9 2 Tactical Retreats 1 | . . 1 . . Traps | -11 -10 -10 -10 -9 ------- Run | Yrd Mat Min Exi Min Traps Triggered 2 | . 2 . . . Indirectly . | . . . . . Trap Hack Attempts . | . . . . . Triggered . | . . . . . Disarmed . | . . . . . Reprogrammed . | . . . . . Reused . | . . . . . Traps Extracted . | . . . . . Installed . | . . . . . Triggered . | . . . . . Machines | -11 -10 -10 -10 -9 ---------- Run | Yrd Mat Min Exi Min Machines Disabled 2 | . . . 2 . Max in Single Turn 1 | . . . 1 . Machines Repaired . | . . . . . Machines Dismantled . | . . . . . Machines Sabotaged . | . . . . . Overloaded Fab Kills . | . . . . . Hacking | -11 -10 -10 -10 -9 --------- Run | Yrd Mat Min Exi Min Machines Accessed 6 | . 3 1 2 . Terminals 3 | . 3 . . . Fabricators . | . . . . . Repair Stations . | . . . . . Recycling Units . | . . . . . Scanalyzers . | . . . . . Garrison Access . | . . . . . Total Hacks 10 | . 7 1 2 . Successful 4 | . 1 1 2 . Failed 6 | . 6 . . . Catastrophic . | . . . . . Database Lockouts . | . . . . . Manual 7 | . 6 . 1 . Terminals 7 | . 7 . . . Fabricators . | . . . . . Repair Stations . | . . . . . Recycling Units . | . . . . . Scanalyzers . | . . . . . Garrison Access . | . . . . . Terminal Hacks 4 | . 1 1 2 . Record 1 | . . . 1 . Open Door 1 | . . 1 . . Branch Access Points 1 | . 1 . . . Proto ID Catalog 1 | . . . 1 . Fabricator Hacks . | . . . . . Repair Station Hacks . | . . . . . Recycling Unit Hacks . | . . . . . Scanalyzer . | . . . . . Garrison Access Hacks . | . . . . . Unauthorized Hacks . | . . . . . Terminals . | . . . . . Fabricators . | . . . . . Repair Stations . | . . . . . Recycling Units . | . . . . . Scanalyzers . | . . . . . Garrison Access . | . . . . . Data Cores Recovered . | . . . . . Used . | . . . . . Hacking Detections 2 | . 2 . . . Full Trace Events . | . . . . . Feedback Events . | . . . . . Feedback Blocked . | . . . . . Robot Schematics Acquired . | . . . . . Robots Built . | . . . . . Authchips . | . . . . . Time . | . . . . . Total Robot Build Rating . | . . . . . Part Schematics Acquired . | . . . . . Parts Built . | . . . . . Authchips . | . . . . . Time . | . . . . . Total Part Build Rating . | . . . . . Part Studies Acquired . | . . . . . Parts Repaired . | . . . . . Time . | . . . . . Parts Recycled . | . . . . . Recycled Matter . | . . . . . Retrieved Matter . | . . . . . Retrieved Components . | . . . . . Parts Scanalyzed . | . . . . . Part Schematics Acquired . | . . . . . Parts Damaged . | . . . . . Bothacking | -11 -10 -10 -10 -9 ------------ Run | Yrd Mat Min Exi Min Used RIF Installer . | . . . . . Robots Hacked 4 | . . . 4 . Non-combat 3 | . . . 3 . Combat 1 | . . . 1 . Robot Hacks Applied 4 | . . . 4 . parse_system 4 | . . . 4 . Relay Couplers Released . | . . . . . Fabnet Peak Effective % . | . . . . . Robots Rewired . | . . . . . Allies Hacked . | . . . . . Hacks Repelled . | . . . . . Allies | -11 -10 -10 -10 -9 -------- Run | Yrd Mat Min Exi Min Total Allies . | . . . . . Largest Group . | . . . . . Highest-Rated Group . | . . . . . Highest-Rated Ally . | . . . . . Total Orders 1 | . . . 1 . RETURN 1 | . . . 1 . Ally Attacks 131 | . . . 131 . Total Damage 813 | . . . 813 . Kills . | . . . . . Allies Corrupted . | . . . . . Allies Melted . | . . . . . Intel | -11 -10 -10 -10 -9 ------- Run | Yrd Mat Min Exi Min Active Infowar (turns) 3254 | . 1496 705 1053 . Seismic 3254 | . 1496 705 1053 . Robot Analysis Total . | . . . . . Derelict Logs Recovered . | . . . . . Drone Launches 11 | . . . 11 . Drone Recoveries 9 | . . . 9 . Exploration | -11 -10 -10 -10 -9 ------------- Run | Yrd Mat Min Exi Min Turns Passed 4169 | 130 1598 710 1729 2 Spaces Moved 1591 | 76 630 261 624 . Core 19 | 19 . . . . Treads 1534 | 57 630 261 586 . Legs 38 | . . . 38 . Wheels . | . . . . . Hover . | . . . . . Flight . | . . . . . Fastest Speed 50 | 50 160 240 120 . Average Speed 213 | 132 220 240 205 . Slowest Speed 240 | 160 240 240 240 . Overloaded Moves . | . . . . . Propulsion Burnouts . | . . . . . Robots Hopped . | . . . . . Potential Cave-ins . | . . . . . Cave-ins Triggered . | . . . . . Exploration Rate (%) 42 | 4 88 47 70 3 Regions Visited 4 Branch Regions 3 Pre-discovered Areas 1 | . . . 1 . Known Exits Taken 1 | . 1 . . . Unknown Exits Taken 3 | 1 . 1 1 . Scrap Searched 1 | . . 1 . . Spaces Dug . | . . . . . Terrain Destroyed 23 | . . . 22 1 Melee . | . . . . . Projectile 1 | . . . . 1 AOE 22 | . . . 22 . Terrain Rammed . | . . . . . Walls Destroyed . | . . . . . Machines Disabled . | . . . . . Actions | -11 -10 -10 -10 -9 --------- Run | Yrd Mat Min Exi Min Total 2188 | 95 733 297 1062 1 Wait 368 | . 3 1 364 . Move 1587 | 75 629 260 623 . Hop . | . . . . . Pick Up 54 | 9 26 2 17 . Fast Attach 4 | 2 . 2 . . Attach 10 | 4 4 1 1 . Detach . | . . . . . Swap 20 | . 3 1 16 . Drop 38 | . 8 3 27 . Fire 103 | 5 60 27 10 1 Melee 4 | . . . 4 . Ram . | . . . . . Kick . | . . . . . Crush . | . . . . . Escape Stasis . | . . . . . Rewire . | . . . . . Trap . | . . . . . Miscellaneous . | . . . . . Route ------- -11/Scrapyard -10/Materials (discovered 5 exits: [*Mat x3] / *Min x2) -10/Mines (discovered 2 exits: [*Mat] / *Exi) -10/Exiles -9/Mines History --------- Turn | Location | Event 6 | -11/Scrapyard | Discovered new exit (range 16) 131 | -11/Scrapyard | Entered Materials 270 | -10/Materials | Discovered new exit (range 14) 312 | -10/Materials | Build established: Mutant 328 | -10/Materials | Identified exit to Mines 441 | -10/Materials | Discovered new exit (range 14) 1125 | -10/Materials | Discovered new exit (range 3) 1388 | -10/Materials | Discovered new exit (range 15) 1729 | -10/Materials | Entered Mines 1742 | -10/Mines | Core integrity fell below 50% 2129 | -10/Mines | Deemed a non-threat by the Exiles lab entrance 2129 | -10/Mines | Discovered new exit (range 5) 2258 | -10/Mines | Discovered new exit (range 9) 2283 | -10/Mines | Found the Drone Emporium 2294 | -10/Mines | Found Prototype Device 2294 | -10/Mines | Identified Thief Drone Bay 2439 | -10/Mines | Entered Exiles 2495 | -10/Exiles | Met 8R-AWN 2543 | -10/Exiles | Met EX-HEX 2688 | -10/Exiles | Met EX-DEC 2757 | -10/Exiles | Learned location of Zion (-6) 3007 | -10/Exiles | Met EX-BIN 3064 | -10/Exiles | Aligned with FarCom system 3066 | -10/Exiles | Given EX-Vault access code 3123 | -10/Exiles | Opened EX-Vault 3125 | -10/Exiles | Build established: Scavenger-Mutant 3137 | -10/Exiles | Found Latent Energy Streamer 3145 | -10/Exiles | Found Chronowheel 3166 | -10/Exiles | Found Deploy-a-Sentry 3169 | -10/Exiles | Found Deploy-a-Sentry 3173 | -10/Exiles | Found Deploy-a-Sentry 3221 | -10/Exiles | Warned to stay clear of 0b10 Research branches 3691 | -10/Exiles | Attacked by the Exiles 3738 | -10/Exiles | Core integrity fell below 20% 3829 | -10/Exiles | Found 8R-AWN's Boregun 4092 | -10/Exiles | Build established: Mutant 4124 | -10/Exiles | Found 8R-AWN's Boregun 4127 | -10/Exiles | Destroyed 8R-AWN 4141 | -10/Exiles | Found 8R-AWN's Armor/EX 4158 | -10/Exiles | Discovered new exit (range 10) 4168 | -10/Exiles | Stole three prototypes: Chronowheel, Latent Energy Streamer, Deploy-a-Sentry 4168 | -10/Exiles | Entered Mines 4170 | -9/Mines | Destroyed by G-34 Mercenary with Small Laser Last Messages --------------- 04118_ Thief Drone retrieved by Thief Drone Bay (no repairs). 04127_ HV Slug penetrates 8R-AWN. 04127_ 8R-AWN destroyed. 04127_ HV Slug penetrates Machine. 04127_ Machine disabled. 04127_ HV Slug penetrates Wall. 04132_ Acquired Adv. Weapon Cycler. 04133_ Acquired 58 matter. 04136_ Acquired 120 matter. 04140_ Dropped Lrg. Matter Pod. 04141_ Dropped Hcp. Battery. 04141_ Acquired 8R-AWN's Armor/EX. 04142_ Extracted 19 matter. 04145_ Extracted 6 energy. 04158_ EXIT=FOUND LOCATION=UNKNOWN GOAL=ESCAPE 04168_ HV Slug penetrates G-47 Trooper. 04168_ HV Slug penetrates Wall. Map ----- +----------------------------------------------------+ | | | | | ???????????????????????????????? | | ???????????????????????????????? | | ???????????????????????????????? | | ???????????????????????????????? | | ???????????????????????????????? | | ???????????????????????????????? | | ???????????????????????????????? | | ???????????????????????????????? | | ??????????????????????????#????? | | ?????????????????????#???? ????? | | ?????????????????????# ??? ????? | | ?????????????????????? """ ????? | | ?????????????????????? """ ????? | | ?????????????????????? """ ????? | | ?????????????????????? ????? | | ??????????????????????? ????? | | ??????????????????????? #????? | | ??????????????????????? #????? | | ???????????????????????# #????? | | ???????????????????????# #????? | | ???????????????????????# #????? | | ???????????????????????# #????? | | ??????????????????????## ##???? | | ??????????????????????# @ #???? | | ??????????????????????# #???? | | ??????????????????????##g #??? | | ???????????????????????;# g #??? | | ??????????????????????#### #??? | | ?????????????????????????? ??? | | ?????????????????????????? #?? | | ??????????????????????????$ #?? | | ?????????????????????????? ###?? | | ?????????????????????????? #???? | | ?????????????????????????? #???? | | ?????????????????????????? #???? | | ???????????????????????????#???? | | ???????????????????????????????? | | ???????????????????????????????? | | ???????????????????????????????? | | ???????????????????????????????? | | ???????????????????????????????? | | ???????????????????????????????? | | ???????????????????????????????? | | ???????????????????????????????? | | ???????????????????????????????? | | ???????????????????????????????? | | ???????????????????????????????? | | ???????????????????????????????? | +----------------------------------------------------+ Best States ------------- Heat Dissipation 25 Energy Generation 14 Energy Capacity 250 Matter Stores 300 Matter Capacity 300 Sight Range 16 Terrain Scan Density 10 Armor Coverage 150 Evasion (%) 55 Recoil Reduction 2 Item Schematics ----------------- None Robot Schematics ------------------ None Fabricated ------------ Nothing Repaired ---------- Nothing Studied --------- None Alien Tech Used ----------------- None Achievements -------------- None Challenges ------------ None Game ------ Seed SeismicCompactWheel Manual? 0 Play Time 00:17:40 Cumulative 680.6 hours Start 2026.02.05 @ 08:36:44 End 2026.02.07 @ 15:22:07 Sessions 2 Manual Loads 0 Difficulty Rogue Special Mode None Game No. 846 Rogue 846 Adventurer 0 Explorer 0 Win Type - Total 24 Types 11/1/3/3/2/0/2/2/0/0 Lore% 96 Gallery% 93 Achievement% 82 Wizard Run 0 Options --------- Layout 2 ASCII 0 Keyboard 0 Movement Mouse Keybinds 0 Fullscreen 2 Font 24/Terminus Map View 50x44 Zoom Use 0% Tactical HUD 1 Map Filters NONE Filters NONE Steam 1 RUN: 32af44c9-fc3a-43cf-8610-eea38ef0b4cf